bitfinex/quotes_ETHUSD_20250804
["timestamp","ask_amount","ask_price","bid_price","bid_amount"]
[1754314195707,1.47,3569.3,3569.0,2.80184859]
[1754314195941,1.0182,3569.2,3568.9,2.80195355]
[1754314196140,1.0182,3569.2,3569.0,0.14]
[1754314196347,1.0182,3569.1,3569.0,0.14]
[1754314197246,1.0182,3569.1,3568.5,7.08123799]
[1754314197432,1.47,3569.0,3568.8,0.14]
[1754314197820,1.0182,3568.9,3568.8,2.94204233]
[1754314198216,0.14,3569.3,3568.9,2.80192321]
[1754314198528,1.0182,3569.1,3568.9,2.80192321]
[1754314200234,0.14,3569.3,3568.8,0.14]
[1754314200546,0.14,3569.7,3569.0,0.14]
[1754314200735,1.1582,3569.9,3569.6,2.80141152]
[1754314200940,4.418,3569.9,3569.7,2.80135471]
[1754314201137,0.141,3570.2,3569.7,2.94134559]
[1754314201341,0.9967,3570.1,3569.7,0.14]
[1754314201537,0.9967,3570.0,3569.8,2.80121966]
[1754314201737,0.9967,3570.0,3569.9,2.80119234]
[1754314201945,4.42,3570.2,3570.0,2.80110952]
[1754314202140,4.42,3570.2,3567.7,2.80287606]
[1754314202141,2.80151281,3569.5,3567.7,2.80287606]
[1754314202353,2.80166979,3569.3,3567.5,2.80307311]
[1754314202541,0.14,3568.2,3567.7,0.14]
[1754314202730,1.4571,3568.1,3567.7,0.14]
[1754314202930,0.9967,3568.0,3567.7,0.14]
[1754314203154,0.14,3568.2,3567.7,0.14]
[1754314203357,0.14,3568.2,3567.9,4.32906177]
[1754314203936,0.9967,3568.1,3567.9,4.32906177]
[1754314204136,0.14,3568.2,3567.9,4.32906177]
[1754314205258,5.3017,3568.4,3567.9,4.32906177]
[1754314205455,0.9967,3568.7,3567.9,4.75776177]
[1754314205758,0.14,3568.8,3568.3,2.94240543]
[1754314206153,4.303,3569.1,3568.3,0.14]
[1754314206354,0.14,3568.9,3568.4,1.3494]
[1754314206541,0.14,3568.9,3568.5,2.80229788]
[1754314206854,1.38503623,3569.2,3568.5,1.3494]
[1754314207054,0.14,3569.2,3568.9,2.80196671]
[1754314207257,4.444,3569.5,3569.0,0.16801905]
[1754314207421,6.142528,3569.8,3569.1,2.80177606]
[1754314207625,2.94135605,3569.7,3568.6,4.304]
[1754314207958,4.25860812,3569.6,3568.8,2.80203434]
[1754314208133,4.25867052,3569.5,3568.8,2.80203434]
[1754314208333,2.80143433,3569.6,3568.9,2.80193601]
[1754314208543,0.14,3569.4,3568.9,0.14]
[1754314208750,0.14,3569.6,3569.1,2.94175579]
[1754314209058,0.9967,3569.4,3569.1,2.94175579]
[1754314209256,1.4571,3569.3,3569.1,2.94175579]
[1754314209454,0.14,3569.6,3569.1,0.14]
[1754314209668,1.4571,3569.2,3568.9,0.14]
[1754314209842,1.4571,3569.1,3568.7,2.80211782]
[1754314210024,0.9967,3569.0,3568.7,2.94211782]
[1754314210224,0.4604,3569.1,3568.7,0.14]
[1754314210458,0.9967,3568.9,3568.4,4.303]
[1754314210657,0.9967,3568.8,3568.5,0.14]
[1754314210955,0.14,3569.0,3568.7,2.80212344]
[1754314211265,0.9967,3568.9,3568.5,2.94228491]
[1754314211636,0.14,3569.0,3568.8,2.80206231]
[1754314211959,0.14,3569.0,3568.7,2.80211724]
[1754314212341,1.1367,3569.0,3568.7,2.80211724]
[1754314212663,1.4571,3568.9,3568.1,4.302]
[1754314212965,0.14,3568.8,3568.4,2.80231608]
[1754314213153,0.17502577,3568.8,3568.3,2.94245329]
[1754314213328,1.4571,3568.7,3568.1,4.302]
[1754314213526,0.15971,3569.0,3568.5,2.80224675]
[1754314213527,0.14,3568.6,3568.5,2.80224675]
[1754314213730,0.14,3568.6,3568.1,7.2445908]
[1754314213731,5.2987,3569.3,3568.1,4.302]
[1754314214040,5.94741336,3569.3,3568.7,2.80207173]
[1754314214255,8.74909584,3569.3,3568.7,2.80207173]
[1754314214566,0.64871336,3569.3,3569.0,2.80190529]
[1754314214752,0.14,3569.4,3568.9,2.94198196]
[1754314215063,1.4571,3569.3,3568.9,0.14]
[1754314215263,1.4571,3569.3,3568.0,2.80265207]
[1754314215264,0.14,3569.0,3568.6,2.80214711]
[1754314215428,0.6004,3569.0,3568.6,2.80221935]
[1754314215630,0.14,3569.0,3568.5,0.14]
[1754314215835,1.1367,3569.3,3568.6,1.3494]
[1754314216060,1.1367,3569.3,3568.9,2.80196646]
[1754314216256,1.01016193,3569.3,3569.1,2.80178087]
[1754314216433,0.9967,3569.2,3569.1,2.80178087]
[1754314216635,0.9967,3569.2,3569.0,2.80186183]
[1754314217475,0.841709,3570.3,3569.1,1.4894]
[1754314217635,0.001,3571.2,3569.1,1.4894]
[1754314217636,4.442,3570.1,3569.1,1.4894]
[1754314217834,4.442,3570.1,3569.8,2.80122998]
[1754314218132,0.9967,3570.0,3569.6,2.94141102]
[1754314218329,0.9967,3569.9,3569.5,2.80151281]
[1754314218577,0.9967,3569.9,3569.6,2.94136912]
[1754314218762,0.9967,3569.9,3569.7,2.8013543]
[1754314219145,4.442,3570.1,3569.8,2.80122568]
[1754314219352,4.442,3570.1,3569.6,2.94141355]
[1754314219353,4.442,3570.1,3569.9,2.80119778]
[1754314219547,0.001,3570.4,3569.7,0.4287]
[1754314219774,0.141,3570.2,3570.1,2.80104198]
[1754314220464,0.001,3570.2,3570.1,4.15044198]
[1754314220860,0.001,3570.2,3570.1,2.80104198]
[1754314221570,0.001,3570.2,3570.1,4.15044198]
[1754314221975,0.001,3570.2,3570.1,4.8595992]
[1754314222965,0.001,3570.2,3570.1,3.5101992]
[1754314223477,0.001,3570.2,3570.1,2.80104198]
[1754314224073,0.001,3570.2,3570.1,3.72174198]
[1754314224278,0.001,3570.2,3570.1,4.15044198]
[1754314225281,0.001,3570.2,3570.1,2.80104198]
[1754314226478,0.9977,3570.2,3570.0,0.14]
[1754314226670,0.4604,3570.1,3569.5,2.8014512]
[1754314226871,0.14,3569.8,3569.6,2.80142368]
[1754314227043,1.1367,3569.8,3569.6,2.80142368]
[1754314227238,0.14,3569.8,3569.7,2.80135585]
[1754314227438,0.001,3570.2,3569.8,2.80127738]
[1754314227642,0.9977,3570.2,3569.8,2.80127738]
[1754314227877,0.001,3570.2,3570.1,2.80104198]
[1754314228654,0.9977,3570.2,3570.0,2.94109743]
[1754314228855,0.9977,3570.2,3570.0,2.94109236]
[1754314229266,1.4571,3570.1,3569.6,2.80135711]
[1754314229469,1.4571,3570.0,3569.6,2.80135711]
[1754314229669,0.14,3570.1,3569.6,2.80135711]
[1754314229977,1.4571,3570.0,3569.4,2.80152467]
[1754314230176,0.14,3569.8,3569.4,2.80152467]
[1754314230343,0.14,3569.8,3569.5,2.80150922]
[1754314230550,0.9967,3569.7,3569.3,0.14]
[1754314230749,1.4571,3569.6,3569.3,2.94159573]
[1754314230949,0.4604,3569.6,3569.3,2.94159573]
[1754314231180,0.9476,3569.5,3569.3,2.94159573]
[1754314231379,0.14,3569.8,3569.4,2.8015913]
[1754314231685,0.14,3569.8,3569.3,0.14]
[1754314231686,1.4,3569.7,3569.3,0.14]
[1754314231856,0.14,3569.8,3569.4,2.80153508]
[1754314232065,0.9476,3569.7,3569.5,2.80146423]
[1754314232449,0.9476,3569.6,3569.3,2.94163698]
[1754314232696,0.9476,3569.5,3569.3,0.14]
[1754314233064,0.43763052,3569.5,3568.3,2.80238193]
[1754314233370,1.54,3569.4,3569.0,2.80190529]
[1754314233546,1.4,3569.3,3568.9,2.94195105]
[1754314233774,0.9476,3569.2,3569.0,2.80190529]
[1754314234178,0.9476,3569.1,3569.0,2.80190529]
[1754314234415,0.14,3569.2,3569.0,2.80190529]
[1754314234931,1.0876,3569.2,3569.0,2.80189472]
[1754314235231,1.0876,3569.2,3568.9,2.8019838]
[1754314235432,1.43109486,3572.4,3569.1,2.80182679]
[1754314235433,0.9476,3569.6,3569.1,2.80182679]
[1754314235578,0.14,3569.3,3569.2,2.80174829]
[1754314235774,0.14,3569.6,3569.1,0.14]
[1754314235979,0.9476,3569.9,3569.2,1.3933]
[1754314236213,1.0876,3569.9,3569.7,2.80134998]
[1754314236418,1.0876,3569.9,3569.8,2.80127738]
[1754314236594,0.14,3569.9,3569.8,2.80127738]
[1754314236978,4.301,3570.2,3569.8,2.80127738]
[1754314237182,0.14,3570.1,3569.8,2.80123276]
[1754314237379,0.001,3570.2,3570.0,2.8010717]
[1754314237598,0.001,3570.2,3570.1,3.27144198]
[1754314238194,0.001,3570.2,3570.1,4.22235239]
[1754314238378,0.001,3570.2,3570.1,4.19434198]
[1754314239012,0.001,3570.2,3570.1,4.22235239]
[1754314239213,0.001,3570.2,3570.1,5.36880051]
[1754314239530,1e-08,3570.2,3570.1,9.05880051]
[1754314239737,1e-08,3570.2,3570.1,9.0307901]
[1754314240318,1e-08,3570.2,3570.1,7.6374901]
[1754314240519,1e-08,3570.2,3570.1,2.80104198]
[1754314240822,0.94760001,3570.2,3570.1,2.80104198]
[1754314241116,1e-08,3570.2,3570.1,2.80104198]
[1754314242594,0.94760001,3570.2,3569.9,4.301]
[1754314242814,0.94760001,3570.2,3570.1,2.80104198]
[1754314243234,1.40000001,3570.2,3570.1,2.80104198]
[1754314243431,1e-08,3570.2,3570.1,2.80104198]
[1754314243818,0.94760001,3570.2,3570.1,2.80104198]
[1754314244030,0.94760001,3570.2,3569.9,2.80119891]
[1754314244232,0.94760001,3570.2,3569.8,5.80126594]
[1754314244445,0.94760001,3570.2,3570.1,2.80104198]
[1754314244732,1e-08,3570.2,3570.1,2.80104198]
[1754314245734,1e-08,3570.2,3570.1,4.19434198]
[1754314246039,1e-08,3570.2,3570.1,2.80104198]
[1754314246941,0.94760001,3570.2,3570.1,2.80104198]
[1754314247244,1e-08,3570.2,3570.1,2.80104198]
[1754314248807,1e-08,3570.2,3570.1,5.27783457]
[1754314249008,1e-08,3570.2,3570.1,3.88453457]
[1754314249976,0.4524,3570.9,3570.1,3.88453457]
[1754314249977,0.001,3571.2,3570.7,2.80050764]
[1754314250120,0.001,3571.2,3571.1,2.80025762]
[1754314250546,0.001,3571.2,3571.1,8.05616019]
[1754314250842,0.001,3571.2,3571.1,8.49855762]
[1754314252152,0.001,3571.2,3571.1,2.80025762]
[1754314252355,0.001,3571.2,3571.1,7.10525762]
[1754314252587,0.001,3571.2,3571.1,9.78316715]
[1754314253269,1e-08,3571.2,3571.1,13.33316715]
[1754314253433,1e-08,3571.2,3571.1,29.95922867]
[1754314253635,1e-08,3571.2,3571.1,30.16953183]
[1754314253874,0.14,3572.9,3571.2,3.55]
[1754314254072,1.0876,3572.9,3572.8,2.79892521]
[1754314254372,5.2506,3573.2,3572.9,2.79884687]
[1754314254570,1.0876,3573.1,3572.6,0.14]
[1754314254720,0.14,3573.1,3572.6,2.93903142]
[1754314254921,1.4,3573.0,3572.6,0.14]
[1754314255165,0.9476,3572.9,3572.6,0.14]
[1754314255521,0.4524,3572.9,3572.6,0.14]
[1754314255728,0.9476,3572.9,3572.7,2.79900355]
[1754314256134,0.9476,3572.9,3572.6,0.14]
[1754314256358,0.14,3573.2,3572.6,0.14]
[1754314256572,1.38145372,3573.1,3572.6,0.14]
[1754314256758,0.43385372,3573.1,3572.6,0.14]
[1754314256960,1.4,3573.0,3572.6,0.14]
[1754314257163,1.4,3572.9,3572.6,0.14]
[1754314257363,0.9476,3572.8,3572.6,2.93907466]
[1754314257762,0.9476,3572.8,3572.6,0.14]
[1754314258844,0.9476,3572.8,3572.6,2.93907021]
[1754314259275,1.38145372,3573.1,3572.7,2.79900355]
[1754314259575,1.4,3573.0,3572.6,0.14]
[1754314259765,1.4,3572.9,3572.6,0.14]
[1754314260004,1.4,3572.9,3572.6,2.93906347]
[1754314260278,0.4524,3572.9,3572.6,2.93906347]
[1754314260488,0.14,3573.2,3572.6,0.14]
[1754314260657,1.0876,3573.6,3572.8,0.14]
[1754314260998,0.9486,3573.8,3573.3,2.79848404]
[1754314261174,0.141,3573.8,3572.8,8.49018883]
[1754314261491,0.001,3573.8,3573.5,0.14]
[1754314261691,0.001,3573.8,3573.5,2.93836683]
[1754314261993,0.001,3573.8,3573.7,2.79822033]
[1754314262491,0.001,3573.8,3573.7,5.24197898]
[1754314262646,0.001,3573.8,3573.7,8.26996118]
[1754314262842,0.001,3573.8,3573.7,8.38197898]
[1754314263278,1e-08,3573.8,3573.7,8.38197898]
[1754314264393,0.001,3574.3,3574.2,6.34782888]
[1754314264683,0.8942,3575.8,3574.5,0.55]
[1754314264845,0.8942,3575.9,3574.9,0.55]
[1754314265051,0.8942,3575.9,3575.6,2.79673341]
[1754314265245,0.8942,3575.9,3575.6,0.14]
[1754314265477,1.3665,3575.7,3575.6,0.14]
[1754314266653,1.3665,3575.7,3575.2,4.301]
[1754314266968,2.7968144,3575.5,3575.2,0.14]
[1754314267166,1.3655,3575.6,3575.2,0.14]
[1754314267376,0.001,3575.7,3575.2,0.14]
[1754314267598,0.001,3575.7,3575.3,2.79696808]
[1754314267800,0.8942,3575.6,3575.2,2.93701993]
[1754314267965,1.3655,3575.5,3575.2,0.14]
[1754314268165,0.8942,3575.5,3575.2,0.14]
[1754314268464,1.3655,3575.4,3575.2,0.14]
[1754314268863,0.8942,3575.3,3575.2,0.14]
[1754314269067,1.3655,3575.3,3575.0,0.14]
[1754314269366,2.79712455,3575.1,3575.0,0.14]
[1754314269566,4.57889795,3575.1,3574.2,2.79778597]
[1754314269866,31.40046503,3575.0,3573.3,4.3]
[1754314270094,3.21340954,3575.1,3573.6,0.14]
[1754314270095,0.14,3574.1,3573.6,0.14]
[1754314270297,0.8942,3574.0,3573.8,0.14]
[1754314270600,0.8942,3574.0,3573.4,4.308]
[1754314270601,1.3655,3574.0,3573.4,4.308]
[1754314270807,2.79829124,3573.7,3573.3,0.14]
[1754314271015,2.79867602,3573.2,3573.0,0.14]
[1754314271190,2.9386696,3573.2,3572.7,0.14]
[1754314271390,1.3655,3573.1,3572.7,0.14]
[1754314271584,1.3655,3573.1,3572.7,2.93899822]
[1754314271810,0.4713,3573.5,3572.7,0.14]
[1754314271978,1.5055,3573.5,3573.0,0.14]
[1754314272177,1.3655,3573.4,3573.0,0.14]
[1754314272569,0.8942,3573.3,3573.0,7.14]
[1754314272786,0.8942,3573.3,3573.2,2.79861188]
[1754314273400,1.0342,3573.6,3573.4,2.7984198]
[1754314273582,1.0342,3573.6,3573.0,8.13388477]
[1754314273799,0.14,3573.6,3573.3,2.798458]
[1754314273987,0.14,3573.6,3573.3,2.79846018]
[1754314274298,0.14,3573.6,3573.4,2.79842985]
[1754314274524,0.14,3573.6,3573.5,2.79837694]
[1754314274870,0.14,3573.9,3573.6,2.79825079]
[1754314275130,0.14,3574.1,3573.4,0.14]
[1754314275331,0.14,3574.1,3573.6,2.93824932]
[1754314275633,1.0342,3574.1,3573.9,2.79799899]
[1754314275834,1.0342,3574.1,3573.7,2.79814438]
[1754314276135,0.4713,3574.3,3573.4,0.85816673]
[1754314276136,0.6113,3574.3,3574.1,2.79789679]
[1754314276338,0.8942,3575.2,3574.6,2.7974995]
[1754314276522,0.8942,3575.2,3575.0,2.79714127]
[1754314276726,0.4713,3575.5,3575.1,2.79712429]
[1754314277042,0.4713,3575.5,3574.7,2.79737308]
[1754314277043,0.8942,3575.4,3574.7,2.79737308]
[1754314277337,0.8942,3575.4,3574.6,4.314]
[1754314277646,0.8942,3575.4,3574.2,0.8961]
[1754314277647,0.4713,3575.3,3574.7,2.7974165]
[1754314277820,0.4713,3575.3,3574.8,2.79729645]
[1754314278025,1.3655,3575.2,3575.0,2.79718992]
[1754314278221,0.4713,3575.6,3575.1,2.79712455]
[1754314278408,0.8942,3575.5,3575.1,2.79708981]
[1754314278607,0.8442,3575.5,3574.6,2.7975158]
[1754314278813,0.8442,3575.5,3575.2,2.79704206]
[1754314279012,0.4713,3575.6,3575.3,2.79695042]
[1754314279232,0.4713,3575.5,3575.2,2.79702491]
[1754314279516,0.4713,3575.4,3574.9,2.79727529]
[1754314279714,2.79678632,3575.6,3574.9,2.79727529]
[1754314279909,2.79678632,3575.6,3574.5,4.314]
[1754314279910,0.4713,3575.5,3574.5,4.314]
[1754314280121,2.79688985,3575.4,3574.7,2.79743049]
[1754314280349,2.79682969,3575.5,3574.6,2.79750937]
[1754314280514,3.69094068,3575.6,3574.5,5.2101]
[1754314280843,4.16231976,3575.5,3574.8,2.79734334]
[1754314281045,4.16231976,3575.5,3574.6,2.797468]
[1754314281046,2.79701888,3575.3,3574.6,2.797468]
[1754314281346,2.79702381,3575.3,3574.6,2.79745666]
[1754314281520,4.16255193,3575.2,3574.4,2.79763743]
[1754314281726,4.16255193,3575.2,3574.7,2.79738871]
[1754314281727,0.8942,3575.1,3574.7,2.79738871]
[1754314282049,0.8952,3575.7,3574.5,3.0]
[1754314282254,3.69185849,3575.7,3575.0,2.7971755]
[1754314282430,4.16225073,3575.6,3575.0,2.7971755]
[1754314282641,3.26805073,3575.6,3575.0,2.7971755]
[1754314282842,0.8942,3575.5,3575.0,2.7971755]
[1754314283153,2.79707212,3575.2,3574.6,2.79749733]
[1754314283463,5.6775,3575.1,3573.9,4.312]
[1754314283645,1.3655,3575.0,3574.0,2.79790936]
[1754314283843,0.8942,3574.9,3573.9,4.312]
[1754314284055,0.8942,3574.9,3574.0,0.02797985]
[1754314284248,0.8942,3574.9,3574.7,2.79742432]
[1754314284566,4.313,3575.2,3574.5,2.79752123]
[1754314284767,4.313,3575.2,3574.6,2.79749029]
[1754314285063,0.8942,3575.1,3574.6,2.79746517]
[1754314285268,4.1977228,3575.0,3574.0,4.315]
[1754314285465,7.11012072,3575.2,3574.4,2.79761972]
[1754314285466,1.3655,3574.9,3574.4,2.79761972]
[1754314285667,1.3155,3574.8,3573.6,0.8961]
[1754314285834,0.8942,3574.7,3574.1,2.79782986]
[1754314286035,0.8942,3574.7,3574.2,2.79779881]
[1754314286342,1.3255,3575.1,3574.5,2.79759406]
[1754314286541,4.313,3575.2,3574.5,2.79754605]
[1754314286747,3.69135551,3575.1,3573.8,7.11310633]
[1754314286955,0.14,3574.8,3574.3,0.14]
[1754314287157,0.14,3575.0,3574.7,2.79743754]
[1754314287357,1.0342,3575.0,3574.7,2.79743754]
[1754314287564,1.0342,3575.0,3574.7,2.79740709]
[1754314287740,1.3655,3574.9,3574.1,4.315]
[1754314287941,0.81441744,3575.0,3573.5,3.8961]
[1754314287942,0.14,3574.6,3573.9,4.455]
[1754314288137,0.14,3574.3,3573.9,2.79799829]
[1754314288337,0.8942,3574.2,3574.1,2.79790716]
[1754314288538,0.8942,3574.6,3574.2,2.79782888]
[1754314288752,0.14,3574.4,3573.8,0.14]
[1754314289077,0.8942,3574.3,3573.8,2.79811637]
[1754314289277,0.14,3573.9,3573.3,0.14]
[1754314289571,0.14,3573.5,3573.4,2.7984466]
[1754314289742,0.14,3573.8,3573.7,2.7981713]
[1754314290165,3.0,3574.5,3573.5,2.7983125]
[1754314290166,4.32,3574.3,3574.0,2.79796976]
[1754314290365,0.14,3574.0,3573.8,2.79808661]
[1754314290880,0.4713,3574.2,3573.5,0.14]
[1754314291126,0.4713,3574.6,3574.2,2.79781124]
[1754314291267,0.14,3574.3,3574.2,2.79781124]
[1754314291470,0.14,3574.5,3574.2,2.79781124]
[1754314291777,0.9359,3574.4,3574.1,2.79788114]
[1754314291988,1.3881,3574.3,3573.4,0.002]
[1754314292304,1.3881,3574.3,3573.7,0.14]
[1754314292305,0.14,3574.2,3573.7,0.14]
[1754314292604,0.14,3574.2,3574.1,2.79790716]
[1754314292899,0.8859,3574.6,3574.2,2.79782492]
[1754314293101,0.4522,3574.5,3574.2,2.79782492]
[1754314293305,0.4522,3574.5,3574.3,2.79772851]
[1754314293483,0.4522,3574.5,3574.2,2.79780778]
[1754314293671,0.4522,3574.5,3574.3,2.79768421]
[1754314293881,0.4522,3574.4,3574.0,2.79791925]
[1754314294084,0.14,3574.2,3574.1,2.79790716]
[1754314294297,0.4522,3574.2,3573.4,0.002]
[1754314294481,0.14,3573.9,3573.4,0.002]
[1754314294681,0.14,3573.9,3573.5,2.7983619]
[1754314294923,0.4522,3573.8,3573.4,0.002]
[1754314295090,1.3881,3573.8,3573.4,0.002]
[1754314295294,0.14,3573.5,3573.4,2.79845525]
[1754314295495,0.14,3573.5,3573.3,2.79850619]
[1754314295695,0.9359,3573.4,3573.3,2.79850619]
[1754314295914,0.14,3573.5,3573.4,2.79845525]
[1754314296284,0.14,3573.9,3573.8,2.79807814]
[1754314296490,0.14,3573.9,3573.4,0.14]
[1754314296491,1.0759,3573.9,3573.4,0.14]
[1754314296685,1.3881,3573.8,3573.5,2.79834652]
[1754314297022,1.3881,3573.7,3573.0,0.002]
[1754314297324,1.3881,3573.7,3573.0,2.8007114]
[1754314297325,0.14,3573.2,3573.0,2.8007114]
[1754314297523,1.3881,3573.1,3573.0,0.002]
[1754314297689,1.3881,3573.1,3573.0,2.80076854]
[1754314298213,0.9359,3573.1,3573.0,2.80076854]
[1754314298730,0.14,3573.2,3573.1,2.79869021]
[1754314299036,0.14,3573.2,3573.0,2.80074718]
[1754314299328,0.14,3573.2,3573.1,2.79869021]
[1754314299499,1.0759,3573.2,3573.0,0.002]
[1754314299702,1.0259,3573.2,3573.0,0.002]
[1754314300710,1.0259,3573.2,3573.0,2.80076072]
[1754314300998,0.14,3573.3,3573.0,0.002]
[1754314301203,0.14,3573.3,3573.2,2.79861188]
[1754314301435,0.14,3573.3,3573.0,0.002]
[1754314301607,1.0759,3573.3,3573.0,0.002]
[1754314302302,0.14,3573.3,3573.0,0.002]
[1754314302511,0.14,3573.3,3573.1,2.79864094]
[1754314302720,0.14,3573.3,3573.1,2.79865526]
[1754314302919,4.7772,3573.6,3573.0,0.002]
[1754314302920,4.322,3573.6,3573.0,0.002]
[1754314303119,4.322,3573.6,3573.1,2.79869021]
[1754314303302,1.3881,3573.5,3573.2,2.79854272]
[1754314303718,1.3881,3573.5,3573.3,2.79851507]
[1754314303921,0.9359,3573.5,3573.3,2.79851507]
[1754314304107,0.9359,3573.5,3573.3,2.79850422]
[1754314304307,4.322,3573.6,3573.3,2.79850422]
[1754314304533,1.3881,3573.4,3573.0,0.002]
[1754314304735,1.3881,3573.4,3573.0,2.80072293]
[1754314304932,0.9359,3573.4,3573.1,2.79869021]
[1754314305172,4.322,3573.6,3573.0,0.002]
[1754314305452,4.322,3573.6,3573.3,2.79846899]
[1754314305602,5.2579,3573.6,3573.3,2.79846899]
[1754314305803,0.9359,3573.5,3573.3,2.79846899]
[1754314306641,4.322,3573.6,3573.0,0.002]
[1754314306846,4.321,3573.6,3573.1,1.4434]
[1754314307138,4.321,3573.8,3573.6,2.79829863]
[1754314307338,4.321,3573.8,3573.7,2.79822033]
[1754314307553,4.32,3574.2,3573.7,2.79822033]
[1754314307758,0.4522,3574.1,3573.3,2.79853356]
[1754314307919,4.32,3574.2,3573.9,2.79803147]
[1754314308250,0.4522,3574.5,3573.4,1.39849336]
[1754314308436,4.32,3574.3,3574.1,2.79789389]
[1754314308745,2.79790716,3574.1,3573.0,0.002]
[1754314308953,8.5059348,3574.2,3573.4,2.79840998]
[1754314309161,2.79798545,3574.0,3573.4,2.79840998]
[1754314309362,0.9359,3574.0,3573.0,3.002]
[1754314309662,2.79809527,3573.9,3573.0,6.775055]
[1754314309837,0.9359,3573.8,3573.2,2.79856277]
[1754314310163,3.73391103,3574.0,3573.4,2.79845318]
[1754314310346,4.89955048,3573.9,3573.3,2.79852787]
[1754314310544,4.89955048,3573.9,3573.2,2.79858254]
[1754314310545,2.79814239,3573.8,3573.2,2.79858254]
[1754314310754,2.79815305,3573.8,3573.2,2.79857896]
[1754314310959,9.221554,3573.9,3573.1,2.79869021]
[1754314311260,6.42346275,3573.9,3573.1,2.79869021]
[1754314311462,6.42346275,3573.9,3573.0,0.9763]
[1754314311463,9.2215799,3573.9,3573.2,2.7985573]
[1754314311764,9.2215799,3573.9,3573.3,2.7985332]
[1754314312270,2.79816398,3573.8,3573.2,2.79860752]
[1754314312557,0.9359,3573.7,3573.3,2.7985278]
[1754314312754,0.9359,3573.7,3573.4,2.79844199]
[1754314312956,0.14,3573.6,3573.3,2.79850414]
[1754314313148,0.14,3573.6,3573.1,0.14]
[1754314313348,0.14,3573.6,3573.1,1.1143]
[1754314313547,0.14,3573.6,3573.3,2.79848751]
[1754314314144,0.14,3573.6,3573.3,2.79851195]
[1754314315188,0.14,3573.6,3573.5,2.79837694]
[1754314315326,5.03136275,3573.9,3573.5,2.79837694]
[1754314315527,0.14,3573.8,3573.3,0.14]
[1754314315728,0.14,3573.8,3573.0,0.002]
[1754314315729,0.14,3574.0,3573.5,0.14]
[1754314315939,0.14,3574.1,3573.6,1.4434]
[1754314316146,0.14,3574.1,3573.9,2.79802058]
[1754314316479,0.26166211,3574.3,3574.2,2.79782888]
[1754314316688,1.3881,3574.9,3574.1,2.79784179]
[1754314316689,4.317,3574.5,3574.1,2.79784179]
[1754314316894,4.317,3574.5,3574.2,2.79782458]
[1754314317093,5.2529,3574.5,3574.2,2.79782458]
[1754314317256,1.0759,3574.5,3574.2,2.79782458]
[1754314317446,1.0759,3574.5,3574.2,2.79780478]
[1754314317847,1.0759,3574.5,3574.4,2.79767233]
[1754314318044,5.7061,3574.9,3574.4,2.79767233]
[1754314318268,0.14,3574.7,3574.4,2.7976266]
[1754314318439,0.14,3574.7,3574.5,2.79753767]
[1754314318641,0.14,3575.2,3574.6,0.14]
[1754314318869,0.14,3575.2,3575.1,2.79712455]
[1754314319066,0.14,3575.2,3575.0,2.797174]
[1754314319574,0.14,3575.2,3574.7,4.24082126]
[1754314319738,0.14,3575.2,3575.0,2.79718003]
[1754314320220,0.14,3575.2,3574.7,4.24083664]
[1754314320353,0.14,3575.2,3574.7,1.4434]
[1754314320553,0.14,3575.2,3567.4,12.06239557]
[1754314320554,1.42306405,3575.1,3573.7,0.4691]
[1754314320739,3.4062921,3575.4,3573.7,0.4691]
[1754314320740,5.85040641,3575.0,3573.7,0.4691]
[1754314320945,5.85040641,3575.0,3574.5,2.79757147]
[1754314320946,5.85340641,3575.0,3574.5,2.79757147]
[1754314321153,4.17627615,3574.9,3574.3,2.79774625]
[1754314321491,0.8955,3574.9,3574.0,2.79798545]
[1754314321787,2.79781324,3574.3,3573.3,0.8857]
[1754314322089,0.27978132,3574.2,3573.8,2.79806728]
[1754314322585,1.17528132,3574.2,3573.3,5.79853356]
[1754314322789,0.8955,3574.2,3573.3,5.79853356]
[1754314323165,0.4485,3574.5,3573.4,2.79845525]
[1754314323367,5.2265,3574.9,3573.8,3.0]
[1754314323680,4.332,3575.0,3574.4,2.79762102]
[1754314323892,4.332,3575.0,3572.7,16.59050801]
[1754314323893,0.8955,3574.9,3572.7,16.59050801]
[1754314324056,2.79763026,3574.5,3573.3,4.742]
[1754314324264,0.8955,3574.4,3573.4,3.0]
[1754314324499,0.8955,3574.4,3573.5,3.0]
[1754314324692,0.8955,3574.4,3573.9,2.79805902]
[1754314324992,0.8955,3574.3,3573.5,2.79833944]
[1754314325204,0.8955,3574.3,3573.9,2.79801127]
[1754314325394,2.79756277,3574.6,3574.0,2.79798016]
[1754314325700,0.8955,3574.2,3574.1,2.79790716]
[1754314325882,0.52275,3574.8,3573.6,4.333]
[1754314325883,0.8955,3574.6,3573.6,7.13126747]
[1754314326089,0.4485,3574.5,3573.9,2.79800442]
[1754314326285,0.4485,3574.5,3574.0,2.79798375]
[1754314326475,1.344,3574.4,3574.1,2.7979016]
[1754314326797,0.97125,3574.8,3573.4,0.3172]
[1754314326963,0.4485,3574.3,3573.9,2.79804516]
[1754314327163,0.8955,3574.2,3573.9,2.79804516]
[1754314327364,0.8955,3574.2,3574.0,2.79797915]
[1754314327594,0.8955,3574.2,3573.8,2.79811269]
[1754314327960,0.4485,3574.1,3573.5,4.331]
[1754314328196,2.79813385,3573.9,3573.2,2.798563]
[1754314328498,2.04150254,3573.8,3573.4,2.79844659]
[1754314328697,3.49564835,3573.8,3573.0,0.002]
[1754314328866,1.344,3573.7,3573.0,2.80076113]
[1754314329197,0.8955,3573.6,3573.3,2.79846192]